fUST/lending_fUST_20260114
["ID","MTS","AMOUNT","RATE_DAILY","PERIOD"]
[401900095,1768398657057,-300.0,0.00029068,2]
[401900097,1768398657066,-300.0,0.00029068,2]
[401900099,1768398657075,-300.0,0.00029068,2]
[401900101,1768398657084,-4076.93789018,0.0002909,7]
[401900103,1768398657093,-1680.45856606,0.0002909,7]
[401900105,1768398657103,-1570.17531627,0.0002909,7]
[401900107,1768398657112,-6274.42056381,0.0002909,7]
[401900109,1768398657121,-1264.79574827,0.0002909,7]
[401900111,1768398657130,-486.89653562,0.0002909,7]
[401900113,1768398657139,-1947.58614248,0.0002909,7]
[401900115,1768398657148,-325.78589098,0.0002909,7]
[401900117,1768398657157,-1303.14356391,0.0002909,7]
[401900119,1768398657167,-2932.07301879,0.0002909,7]
[401900121,1768398657176,-5212.57425563,0.0002909,7]
[401900123,1768398657185,-8136.50262715,0.0002909,7]
[401900125,1768398657195,-300.0,0.00029096,2]
[401900127,1768398657204,-300.0,0.00029096,2]
[401900129,1768398657213,-300.0,0.00029096,2]
[401900131,1768398657222,-300.0,0.00029096,2]
[401900133,1768398657231,-300.0,0.00029096,2]
[401900135,1768398657240,-300.0,0.00029096,2]
[401900137,1768398657249,-5000.0,0.00029099,7]
[401900138,1768398657258,-5000.0,0.00029121,26]
[401900141,1768398657267,-153.0,0.00029136,30]
[401900143,1768398657276,-500.0,0.00029136,120]
[401900145,1768398657286,-500.0,0.00029136,120]
[401900147,1768398657295,-500.0,0.00029136,120]
[401900149,1768398657305,-500.0,0.00029136,120]
[401900151,1768398657315,-500.0,0.00029136,120]
[401900153,1768398657324,-500.0,0.00029136,120]
[401900155,1768398657333,-500.0,0.00029136,120]
[401900157,1768398657342,-500.0,0.00029136,120]
[401900159,1768398657351,-500.0,0.00029136,120]
[401900161,1768398657360,-500.0,0.00029136,120]
[401900163,1768398657369,-500.0,0.00029136,120]
[401900165,1768398657377,-500.0,0.00029136,120]
[401900166,1768398657386,-500.0,0.00029136,120]
[401900169,1768398657396,-500.0,0.00029136,120]
[401900171,1768398657405,-500.0,0.00029136,120]
[401900173,1768398657414,-500.0,0.00029136,120]
[401900175,1768398657423,-500.0,0.00029136,120]
[401900177,1768398657432,-500.0,0.00029136,120]
[401900179,1768398657441,-500.0,0.00029136,120]
[401900180,1768398657449,-500.0,0.00029136,120]
[401900182,1768398657459,-500.0,0.00029136,120]
[401900184,1768398657468,-500.0,0.00029136,120]
[401900187,1768398657480,-500.0,0.00029136,120]
[401900188,1768398657489,-500.0,0.00029136,120]
[401900190,1768398657500,-500.0,0.00029136,120]
[401900192,1768398657509,-500.0,0.00029136,120]
[401900194,1768398657518,-500.0,0.00029136,120]
[401900196,1768398657527,-500.0,0.00029136,120]
[401900198,1768398657536,-500.0,0.00029136,120]
[401900200,1768398657545,-500.0,0.00029136,120]
[401900203,1768398657554,-500.0,0.00029136,120]
[401900205,1768398657563,-500.0,0.00029136,120]
[401900207,1768398657572,-500.0,0.00029136,120]
[401900209,1768398657581,-500.0,0.00029136,120]
[401900211,1768398657590,-500.0,0.00029136,120]
[401900213,1768398657599,-500.0,0.00029136,120]
[401900215,1768398657608,-500.0,0.00029136,120]
[401900216,1768398657617,-500.0,0.00029136,120]
[401900219,1768398657627,-500.0,0.00029136,120]
[401900221,1768398657636,-500.0,0.00029136,120]
[401900223,1768398657645,-500.0,0.00029136,120]
[401900225,1768398657655,-500.0,0.00029136,120]
[401900227,1768398657664,-500.0,0.00029136,120]
[401900229,1768398657673,-500.0,0.00029136,120]
[401900231,1768398657682,-500.0,0.00029136,120]
[401900233,1768398657691,-2982.50706234,0.00029152,2]
[401900235,1768398657701,-266.0,0.00029155,2]
[401900237,1768398657710,-1722.0,0.00029178,120]
[401900239,1768398657718,-500.0,0.00029178,60]
[401900241,1768398657727,-870.0,0.00029178,60]
[401900243,1768398657736,-500.0,0.00029178,60]
[401900245,1768398657745,-500.0,0.00029178,60]
[401900247,1768398657754,-500.0,0.00029178,60]
[401900249,1768398657764,-452.0,0.00029178,60]
[401900250,1768398657774,-500.0,0.00029178,60]
[401900252,1768398657783,-500.0,0.00029178,60]
[401900254,1768398657792,-500.0,0.00029178,60]
[401900257,1768398657802,-546.32077247,0.00029178,60]
[401900259,1768398657811,-500.0,0.00029178,60]
[401900261,1768398657821,-500.0,0.00029178,2]
[401900263,1768398657830,-376.8200359,0.00029178,30]
[401900265,1768398657839,-377.5822533,0.00029178,30]
[401900267,1768398657848,-160.0,0.000292,7]
[401900269,1768398657857,-167.77,0.000292,7]
[401900271,1768398657866,-5000.0,0.00029204,30]
[401900272,1768398657875,-5000.0,0.00029231,10]
[401900275,1768398657885,-7240.64501543,0.00029232,2]
[401900277,1768398657894,-388.4012934,0.00029233,30]
[401900279,1768398657903,-5000.0,0.00029236,2]
[401900281,1768398657912,-1712.11448759,0.00029256,2]
[401900283,1768398657921,-2882.05488655,0.00029276,2]
[401900285,1768398657930,-5000.0,0.00029314,15]
[401900287,1768398657940,-5000.0,0.00029314,30]
[401900288,1768398657953,-5000.0,0.00029314,30]
[401900291,1768398657963,-5000.0,0.00029314,6]
[401900293,1768398657972,-1722.0,0.00029315,120]
[401900295,1768398657981,-500.0,0.00029315,60]
[401900297,1768398657994,-870.0,0.00029315,60]
[401900299,1768398658003,-500.0,0.00029315,60]
[401900301,1768398658012,-500.0,0.00029315,60]
[401900303,1768398658022,-200.0,0.00029315,60]
[401900305,1768398658031,-421.56871784,0.00029315,60]
[401900307,1768398658041,-452.0,0.00029315,60]
[401900309,1768398658050,-200.0,0.00029315,60]
[401900311,1768398658060,-200.88218581,0.00029315,60]
[401900313,1768398658069,-602.19565449,0.00029315,60]
[401900315,1768398658078,-386.15760488,0.00029315,60]
[401900317,1768398658087,-500.0,0.00029315,60]
[401900319,1768398658096,-500.0,0.00029315,60]
[401900321,1768398658106,-500.0,0.00029315,2]
[401900323,1768398658115,-4297.49,0.00029315,6]
[401900325,1768398658124,-500.0,0.00029315,15]
[401900327,1768398658134,-5000.0,0.00029372,13]
[401900329,1768398658143,-5000.0,0.00029399,2]
[401900331,1768398658153,-800.0,0.000294,2]
[401900333,1768398658162,-800.0,0.000294,3]
[401900335,1768398658171,-330.0,0.00029414,120]
[401900337,1768398658180,-327.0,0.00029432,2]
[401900339,1768398658189,-1722.0,0.00029452,120]
[401900341,1768398658198,-500.0,0.00029452,60]
[401900342,1768398658207,-580.25340699,0.00029452,60]
[401900345,1768398658216,-500.0,0.00029452,60]
[401900346,1768398658226,-870.0,0.00029452,60]
[401900348,1768398658235,-452.0,0.00029452,60]
[401900351,1768398658244,-200.0,0.00029452,60]
[401900352,1768398658254,-500.0,0.00029452,60]
[401900354,1768398658263,-200.0,0.00029452,60]
[401900356,1768398658272,-374.08615076,0.00029452,60]
[401900358,1768398658281,-500.0,0.00029452,2]
[401900377,1768398658440,-2000.0,0.00029479,7]
[401900379,1768398658450,-160.0,0.00029496,3]
[401900381,1768398658459,-728.0,0.00029496,3]
[401900383,1768398658469,-2000.0,0.00029513,10]
[401900385,1768398658478,-2000.0,0.00029522,10]
[401900387,1768398658487,-2000.0,0.0002953,10]
[401900389,1768398658496,-2000.0,0.00029539,10]
[401900391,1768398658505,-2000.0,0.00029548,10]
[401900393,1768398658514,-2000.0,0.00029557,10]
[401900395,1768398658523,-2000.0,0.00029566,10]
[401900397,1768398658532,-2000.0,0.00029574,10]
[401900399,1768398658542,-1276.0,0.00029575,120]
[401900401,1768398658551,-2000.0,0.00029583,10]
[401900403,1768398658562,-1722.0,0.00029589,120]
[401900405,1768398658571,-500.0,0.00029589,60]
[401900407,1768398658580,-191.14675922,0.00029589,60]
[401900409,1768398658590,-500.0,0.00029589,60]
[401900411,1768398658600,-870.0,0.00029589,60]
[401900413,1768398658609,-452.0,0.00029589,60]
[401900415,1768398658618,-271.58859514,0.00029589,60]
[401900417,1768398658628,-500.0,0.00029589,60]
[401900419,1768398658637,-500.0,0.00029589,2]
[401900421,1768398658646,-500.0,0.00029589,15]
[401900423,1768398658656,-269.0,0.00029589,35]
[401900425,1768398658665,-550.0,0.00029589,5]
[401900427,1768398658674,-2000.0,0.00029592,10]
[401900429,1768398658684,-200.0,0.000296,120]
[401900431,1768398658693,-100105.93,0.000296,5]
[401900433,1768398658702,-200.0,0.000296,120]
[401900435,1768398658711,-200.0,0.000296,120]
[401900437,1768398658721,-2000.0,0.00029601,10]
[401900438,1768398658730,-2000.0,0.0002961,10]
[401900439,1768398658739,-2000.0,0.00029618,10]
[401900440,1768398658748,-2000.0,0.00029627,10]
[401900441,1768398658757,-2000.0,0.00029636,10]
[401900442,1768398658766,-2000.0,0.00029645,10]
[401900443,1768398658774,-2000.0,0.00029654,10]
[401900444,1768398658783,-2000.0,0.00029662,10]
[401900445,1768398658792,-2000.0,0.00029671,10]
[401900446,1768398658801,-3000.0,0.00029678,14]
[401900447,1768398658811,-2000.0,0.0002968,10]
[401900448,1768398658820,-1591.0092294,0.0002968,10]
[401900449,1768398658829,-411.0,0.00029695,2]
[401900450,1768398658839,-455912.6,0.000297,5]
[401900451,1768398658847,-1000.98,0.000297,5]
[401900452,1768398658856,-305.62,0.000297,7]
[401900453,1768398658865,-303.2,0.000297,7]
[401900454,1768398658874,-39666.91,0.000297,2]
[401900455,1768398658883,-1722.0,0.00029726,120]
[401900456,1768398658892,-200.0,0.00029726,60]
[401900458,1768398658902,-500.0,0.00029726,60]
[401900460,1768398658911,-250.0,0.00029726,60]
[401900461,1768398658921,-151.23570132,0.00029726,60]
[401900463,1768398658930,-870.0,0.00029726,60]
[401900464,1768398658940,-500.0,0.00029726,60]
[401900465,1768398658954,-452.0,0.00029726,60]
[401900466,1768398658963,-200.0,0.00029726,60]
[401900468,1768398658974,-157.49285757,0.00029726,60]
[401900470,1768398658984,-500.0,0.00029726,2]
[401900471,1768398658993,-1140.2,0.00029729,7]
[401900472,1768398659003,-160.0,0.00029764,14]
[401900473,1768398659012,-728.0,0.00029781,3]
[401900474,1768398659021,-1800.1500613,0.00029835,10]
[401900475,1768398659030,-1722.0,0.00029863,120]
[401900476,1768398659039,-500.0,0.00029863,60]
[401900477,1768398659049,-428.44929732,0.00029863,60]
[401900478,1768398659060,-870.0,0.00029863,60]
[401900479,1768398659070,-452.0,0.00029863,60]
[401900480,1768398659079,-500.0,0.00029863,2]
[401900481,1768398659089,-500.0,0.00029863,15]
[401900482,1768398659098,-10000.0,0.0002987,7]
[401900483,1768398659107,-475.0,0.0002996,7]
[401900484,1768398659116,-238.8017989,0.00029968,30]
[401900485,1768398659125,-1722.0,0.0003,120]
[401900486,1768398659135,-410.85131619,0.0003,60]
[401900487,1768398659144,-870.0,0.0003,60]
[401900489,1768398659155,-452.0,0.0003,60]
[401900490,1768398659164,-500.0,0.0003,2]
[401900491,1768398659173,-161.8907018,0.0003,7]
[401900492,1768398659183,-674605.2108,0.0003,30]
[401900493,1768398659192,-1643.64661303,0.0003,120]
[401900494,1768398659202,-1860.79396663,0.0003,120]
[401900495,1768398659212,-17952.93198753,0.0003,2]
[401900496,1768398659222,-6224.27428838,0.0003,2]
[401900497,1768398659231,-620.46345214,0.0003,120]
[401900498,1768398659240,-165.46,0.0003,5]
[401900499,1768398659250,-3215.0,0.0003,120]
[401900500,1768398659260,-300.0,0.0003,60]
[401900501,1768398659272,-269.88494742,0.0003,2]
[401900502,1768398659281,-407.07231259,0.0003,120]
[401900503,1768398659291,-300.0,0.0003,120]
[401900504,1768398659300,-1966.77487669,0.0003,120]
[401900505,1768398659312,-266.40727857,0.0003,120]
[401900506,1768398659321,-14028.13015713,0.0003,7]
[401900507,1768398659332,-258.55856433,0.0003,10]
[401900508,1768398659341,-471.25,0.0003,30]
[401900509,1768398659351,-1041.66666667,0.0003,7]
[401900510,1768398659362,-474.59648054,0.0003,120]
[401900511,1768398659371,-1000.0,0.0003,120]
[401900512,1768398659385,-1041.66666667,0.0003,7]
[401900513,1768398659395,-151.0,0.0003,7]
[401900514,1768398659404,-151.0,0.0003,7]
[401900515,1768398659413,-151.0,0.0003,7]
[401900516,1768398659422,-243.779961,0.0003,7]
[401900517,1768398659431,-151.0,0.0003,7]
[401900518,1768398659441,-151.0,0.0003,7]
[401900519,1768398659450,-151.0,0.0003,7]
[401900520,1768398659460,-151.0,0.0003,7]
[401900521,1768398659469,-1110.81,0.0003,30]
[401900523,1768398659479,-151.0,0.0003,7]
[401900525,1768398659488,-151.0,0.0003,7]
[401900527,1768398659497,-256.419817,0.0003,7]
[401900529,1768398659506,-151.0,0.0003,7]
[401900531,1768398659515,-151.0,0.0003,7]
[401900533,1768398659524,-151.0,0.0003,7]
[401900535,1768398659533,-151.0,0.0003,7]
[401900537,1768398659543,-200.0,0.0003,7]
[401900539,1768398659553,-200.0,0.0003,7]
[401900541,1768398659564,-561.150045,0.0003,7]
[401900543,1768398659574,-561.150045,0.0003,7]
[401900545,1768398659583,-561.150045,0.0003,7]
[401900547,1768398659592,-561.150045,0.0003,7]
[401900549,1768398659601,-151.0,0.0003,7]
[401900551,1768398659611,-154.230394,0.0003,7]
[401900553,1768398659620,-151.0,0.0003,7]
[401900555,1768398659628,-151.0,0.0003,7]
[401900557,1768398659638,-151.0,0.0003,7]
[401900559,1768398659646,-151.0,0.0003,7]
[401900561,1768398659656,-151.0,0.0003,7]
[401900563,1768398659666,-259.92206125,0.0003,7]
[401900565,1768398659675,-151.0,0.0003,7]
[401900567,1768398659684,-151.0,0.0003,7]
[401900569,1768398659693,-151.0,0.0003,7]
[401900571,1768398659702,-369.592925,0.0003,7]
[401900573,1768398659712,-151.0,0.0003,7]
[401900575,1768398659721,-369.592925,0.0003,7]
[401900577,1768398659732,-179.180636,0.0003,7]
[401900579,1768398659741,-369.592925,0.0003,7]
[401900581,1768398659750,-557.979687,0.0003,3]
[401900583,1768398659759,-369.592925,0.0003,7]
[401900585,1768398659769,-490.347103,0.0003,7]
[401900587,1768398659778,-557.979687,0.0003,3]
[401900589,1768398659787,-490.347103,0.0003,7]
[401900590,1768398659796,-557.979687,0.0003,3]
[401900592,1768398659805,-490.347103,0.0003,7]
[401900594,1768398659815,-557.979687,0.0003,3]
[401900596,1768398659824,-490.347103,0.0003,7]
[401900598,1768398659834,-195.156412,0.0003,7]
[401900600,1768398659843,-195.156412,0.0003,7]
[401900603,1768398659853,-195.156412,0.0003,7]
[401900604,1768398659862,-195.156412,0.0003,7]
[401900606,1768398659871,-196.38849,0.0003,7]
[401900608,1768398659880,-196.38849,0.0003,7]
[401900610,1768398659889,-196.38849,0.0003,7]
[401900612,1768398659898,-196.38849,0.0003,7]
[401900614,1768398659908,-202.037626,0.0003,7]
[401900616,1768398659918,-202.037626,0.0003,7]
[401900618,1768398659927,-202.037626,0.0003,7]
[401900620,1768398659937,-202.037626,0.0003,7]
[401900622,1768398659947,-151.0,0.0003,7]
[401900624,1768398659957,-442.59271,0.0003,7]
[401900626,1768398659967,-442.59271,0.0003,7]
[401900628,1768398659976,-442.59271,0.0003,7]
[401900630,1768398659987,-442.59271,0.0003,7]
[401900632,1768398659997,-151.0,0.0003,7]
[401900634,1768398660006,-151.0,0.0003,7]
[401900636,1768398660018,-633.419635,0.0003,7]
[401900638,1768398660028,-633.419635,0.0003,7]
[401900640,1768398660037,-177.807708,0.0003,7]
[401900642,1768398660047,-633.419635,0.0003,7]
[401900644,1768398660058,-633.419635,0.0003,7]
[401900646,1768398660069,-424.867584,0.0003,7]
[401900648,1768398660078,-424.867584,0.0003,7]
[401900650,1768398660089,-424.867584,0.0003,7]
[401900652,1768398660098,-424.867584,0.0003,7]
[401900654,1768398660109,-151.0,0.0003,7]
[401900656,1768398660118,-151.0,0.0003,7]
[401900658,1768398660127,-151.0,0.0003,7]
[401900660,1768398660137,-151.0,0.0003,7]
[401900662,1768398660148,-151.0,0.0003,7]
[401900664,1768398660157,-151.0,0.0003,7]
[401900666,1768398660167,-151.0,0.0003,7]
[401900668,1768398660177,-151.0,0.0003,7]
[401900670,1768398660186,-879.438014,0.0003,7]
[401900672,1768398660195,-879.438014,0.0003,7]
[401900674,1768398660205,-879.438014,0.0003,7]
[401900676,1768398660215,-879.438014,0.0003,7]
[401900678,1768398660224,-151.0,0.0003,7]
[401900680,1768398660234,-151.0,0.0003,7]
[401900682,1768398660243,-151.0,0.0003,7]
[401900684,1768398660253,-216.013567,0.0003,7]
[401900686,1768398660262,-151.3487,0.0003,7]
[401900688,1768398660273,-216.013567,0.0003,7]
[401900690,1768398660282,-151.3487,0.0003,7]
[401900692,1768398660292,-1020.0,0.0003,7]
[401900694,1768398660301,-216.013567,0.0003,7]
[401900696,1768398660312,-151.3487,0.0003,7]
[401900698,1768398660322,-216.013567,0.0003,7]
[401900700,1768398660332,-151.3487,0.0003,7]
[401900702,1768398660341,-151.0,0.0003,7]
[401900704,1768398660351,-455.0,0.0003,14]
[401900706,1768398660360,-151.0,0.0003,7]
[401900708,1768398660369,-244.488138,0.0003,7]
[401900710,1768398660378,-244.488138,0.0003,7]
[401900712,1768398660388,-244.488138,0.0003,7]
[401900714,1768398660397,-244.488138,0.0003,7]
[401900716,1768398660406,-151.0,0.0003,7]
[401900718,1768398660415,-151.0,0.0003,7]
[401900720,1768398660424,-151.0,0.0003,7]
[401900721,1768398660434,-151.0,0.0003,7]
[401900723,1768398660443,-151.0,0.0003,7]
[401900725,1768398660453,-842.63,0.0003,120]
[401900727,1768398660463,-151.0,0.0003,2]
[401900729,1768398660473,-160.0,0.00030025,8]
[401900731,1768398660482,-1110.81,0.0003006,30]
[401900733,1768398660491,-1859.97705884,0.000301,120]
[401900735,1768398660500,-6513.81815546,0.000301,2]
[401900737,1768398660509,-1753.231323,0.000301,2]
[401900739,1768398660519,-778.0,0.000301,2]
[401900741,1768398660529,-2116.26006047,0.000301,2]
[401900743,1768398660539,-5000.0,0.00030102,2]
[401900745,1768398660548,-38000.0,0.00030118,10]
[401900747,1768398660557,-38000.0,0.00030127,10]
[401900749,1768398660566,-10000.0,0.0003013,2]
[401900751,1768398660576,-1408.23389449,0.0003013,120]
[401900753,1768398660585,-200.0,0.00030135,10]
[401900755,1768398660594,-160.18656469,0.00030135,10]
[401900757,1768398660603,-570.37200728,0.00030136,120]
[401900759,1768398660613,-420.97264632,0.00030136,120]
[401900761,1768398660622,-200.0,0.00030136,10]
[401900763,1768398660631,-500.0,0.00030136,120]
[401900765,1768398660640,-500.0,0.00030136,120]
[401900767,1768398660650,-500.0,0.00030136,120]
[401900769,1768398660660,-38000.0,0.00030136,10]
[401900771,1768398660669,-5569.29962717,0.00030136,10]
[401900773,1768398660681,-509.67312535,0.00030136,120]
[401900775,1768398660692,-491.5565372,0.00030136,120]
[401900777,1768398660704,-500.0,0.00030136,120]
[401900779,1768398660713,-500.0,0.00030136,120]
[401900781,1768398660722,-396.63042018,0.00030136,120]
[401900783,1768398660732,-500.0,0.00030136,120]
[401900785,1768398660741,-500.0,0.00030136,120]
[401900787,1768398660750,-622.70061104,0.00030136,120]
[401900789,1768398660759,-500.0,0.00030136,120]
[401900791,1768398660768,-500.0,0.00030136,120]
[401900793,1768398660777,-500.0,0.00030136,120]
[401900795,1768398660787,-500.0,0.00030136,120]
[401900796,1768398660796,-500.0,0.00030136,120]
[401900798,1768398660805,-500.0,0.00030136,120]
[401900800,1768398660816,-500.0,0.00030136,120]
[401900802,1768398660826,-500.0,0.00030136,120]
[401900804,1768398660835,-500.0,0.00030136,120]
[401900807,1768398660845,-500.0,0.00030136,120]
[401900809,1768398660855,-500.0,0.00030136,120]
[401900811,1768398660864,-500.0,0.00030136,120]
[401900812,1768398660874,-500.0,0.00030136,120]
[401900815,1768398660883,-500.0,0.00030136,120]
[401900817,1768398660894,-498.08812457,0.00030136,120]
[401900819,1768398660903,-500.0,0.00030136,120]
[401900821,1768398660913,-633.79099866,0.00030136,120]
[401900822,1768398660922,-531.72467254,0.00030136,120]
[401900824,1768398660932,-500.0,0.00030136,120]
[401900827,1768398660946,-500.0,0.00030136,120]
[401900829,1768398660955,-500.0,0.00030136,120]
[401900831,1768398660964,-500.0,0.00030136,120]
[401900832,1768398660974,-500.0,0.00030136,120]
[401900834,1768398660984,-500.0,0.00030136,120]
[401900837,1768398660993,-430.86199158,0.00030136,120]
[401900838,1768398661002,-500.0,0.00030136,30]
[401900841,1768398661012,-550.0,0.00030136,30]
[401900843,1768398661022,-500.0,0.00030136,120]
[401900845,1768398661031,-500.0,0.00030136,120]
[401900846,1768398661040,-505.75499506,0.00030136,120]
[401900848,1768398661050,-500.0,0.00030136,120]
[401900851,1768398661059,-500.0,0.00030136,120]
[401900852,1768398661069,-500.0,0.00030136,120]
[401900854,1768398661078,-500.0,0.00030136,120]
[401900856,1768398661087,-500.0,0.00030136,120]
[401900858,1768398661098,-500.0,0.00030136,120]
[401900861,1768398661108,-500.0,0.00030136,120]
[401900862,1768398661118,-633.12806284,0.00030136,120]
[401900864,1768398661128,-500.0,0.00030136,120]
[401900866,1768398661138,-500.0,0.00030136,120]
[401900868,1768398661147,-500.0,0.00030136,120]
[401900870,1768398661157,-500.0,0.00030136,120]
[401900872,1768398661166,-500.0,0.00030136,120]
[401900874,1768398661177,-500.0,0.00030136,120]
[401900877,1768398661187,-500.0,0.00030136,120]
[401900878,1768398661197,-498.0,0.00030136,120]
[401900896,1768398661355,-1685.13427727,0.00030136,60]
[401900898,1768398661365,-1685.13427727,0.00030136,60]
[401900900,1768398661374,-1685.13427727,0.00030136,60]
[401900902,1768398661383,-1685.13427727,0.00030136,60]
[401900904,1768398661392,-1685.13427727,0.00030136,60]
[401900906,1768398661401,-1685.13427727,0.00030136,60]
[401900908,1768398661411,-1685.13427727,0.00030136,60]
[401900910,1768398661420,-1685.13427727,0.00030136,60]
[401900912,1768398661429,-1685.13427727,0.00030136,60]
[401900914,1768398661439,-1685.13427727,0.00030136,60]
[401900916,1768398661449,-1685.13427727,0.00030136,60]
[401900918,1768398661459,-1685.13427727,0.00030136,60]
[401900920,1768398661468,-1685.13427727,0.00030136,60]
[401900921,1768398661478,-1685.13427727,0.00030136,60]
[401900922,1768398661487,-1685.13427727,0.00030136,60]
[401900923,1768398661496,-1685.13427727,0.00030136,60]
[401900924,1768398661506,-1685.13427727,0.00030136,60]
[401900926,1768398661515,-1685.13427727,0.00030136,60]
[401900928,1768398661524,-1685.13427727,0.00030136,60]
[401900930,1768398661532,-1685.13427727,0.00030136,60]
[401900932,1768398661542,-1685.13427727,0.00030136,60]
[401900934,1768398661551,-1685.13427727,0.00030136,60]
[401900936,1768398661560,-1685.13427727,0.00030136,60]
[401900938,1768398661569,-1685.46726175,0.00030136,60]
[401900940,1768398661579,-559.9392664,0.00030136,120]
[401900942,1768398661588,-500.0,0.00030136,120]
[401900944,1768398661598,-500.0,0.00030136,120]
[401900946,1768398661607,-500.0,0.00030136,120]
[401900948,1768398661616,-500.0,0.00030136,120]
[401900950,1768398661625,-500.0,0.00030136,120]
[401900951,1768398661634,-500.0,0.00030136,120]
[401900954,1768398661644,-260.88504659,0.00030136,120]
[401900956,1768398661653,-500.0,0.00030136,120]
[401900958,1768398661662,-500.0,0.00030136,120]
[401900959,1768398661671,-500.0,0.00030136,120]
[401900962,1768398661681,-500.0,0.00030136,120]
[401900964,1768398661690,-500.0,0.00030136,120]
[401900966,1768398661700,-187.17838809,0.00030136,120]
[401900968,1768398661709,-500.0,0.00030136,120]
[401900970,1768398661718,-338.48536786,0.00030136,120]
[401900972,1768398661727,-500.0,0.00030136,120]
[401900974,1768398661736,-390.51499281,0.00030136,120]
[401900975,1768398661745,-500.0,0.00030136,120]
[401900978,1768398661755,-500.0,0.00030136,120]
[401900979,1768398661763,-500.0,0.00030136,120]
[401900982,1768398661772,-500.0,0.00030136,120]
[401900984,1768398661782,-500.0,0.00030136,120]
[401900986,1768398661791,-500.0,0.00030136,120]
[401900988,1768398661801,-500.0,0.00030136,120]
[401900990,1768398661810,-500.0,0.00030136,120]
[401900992,1768398661819,-500.0,0.00030136,120]
[401900993,1768398661828,-500.0,0.00030136,120]
[401900995,1768398661837,-580.02719272,0.00030136,120]
[401900998,1768398661846,-153.64101208,0.00030136,120]
[401901000,1768398661856,-702.9,0.00030136,120]
[401901002,1768398661865,-702.9,0.00030136,120]
[401901004,1768398661875,-820.84,0.00030136,120]
[401901006,1768398661883,-702.9,0.00030136,120]
[401901008,1768398661892,-820.84,0.00030136,120]
[401901010,1768398661902,-702.9,0.00030136,120]
[401901012,1768398661911,-820.84,0.00030136,120]
[401901014,1768398661920,-702.9,0.00030136,120]
[401901016,1768398661929,-820.84,0.00030136,120]
[401901018,1768398661938,-702.9,0.00030136,120]
[401901020,1768398661952,-820.84,0.00030136,120]
[401901022,1768398661961,-702.9,0.00030136,120]
[401901024,1768398661970,-820.84,0.00030136,120]
[401901026,1768398661980,-702.9,0.00030136,120]
[401901028,1768398661991,-820.84,0.00030136,120]
[401901030,1768398662002,-702.9,0.00030136,120]
[401901032,1768398662010,-820.84,0.00030136,120]
[401901034,1768398662020,-702.9,0.00030136,120]
[401901036,1768398662029,-820.84,0.00030136,120]
[401901038,1768398662038,-702.9,0.00030136,120]
[401901040,1768398662047,-820.84,0.00030136,120]
[401901042,1768398662057,-702.9,0.00030136,120]
[401901044,1768398662067,-820.84,0.00030136,120]
[401901046,1768398662076,-702.9,0.00030136,120]